[Event "Late-Titled-Tuesday-Blitz-May-14-2024"]
[Site "Chess.com"]
[Date "2024.05.14"]
[Round "6"]
[White "Kozok"]
[Black "WALDOCHESS"]
[Result "0-1"]
[WhiteElo "2307"]
[BlackElo "2027"]
[TimeControl "180+1"]
[EndTime "15:05:48 PDT"]
[Termination "WALDOCHESS won by resignation"]

1. e4 {[%clk 0:02:51.7]} 1... c5 {[%clk 0:02:59.2]} 2. Nf3 {[%clk 0:02:50.1]}
2... d6 {[%clk 0:02:58.4]} 3. d4 {[%clk 0:02:47.9]} 3... cxd4 {[%clk 0:02:58.6]}
4. Qxd4 {[%clk 0:02:46.3]} 4... Bd7 {[%clk 0:02:57.7]} 5. Be3 {[%clk 0:02:39.3]}
5... Nc6 {[%clk 0:02:57]} 6. Qd2 {[%clk 0:02:39.4]} 6... Nf6 {[%clk 0:02:56.6]}
7. Nc3 {[%clk 0:02:39.5]} 7... g6 {[%clk 0:02:56.7]} 8. Bd3 {[%clk 0:02:32.1]}
8... h5 {[%clk 0:02:54.8]} 9. O-O-O {[%clk 0:02:30.4]} 9... Bg7 {[%clk
0:02:53.7]} 10. Ng5 {[%clk 0:02:26.4]} 10... O-O {[%clk 0:02:48.1]} 11. h3
{[%clk 0:02:25.2]} 11... Qa5 {[%clk 0:02:45.1]} 12. g4 {[%clk 0:02:22.7]} 12...
Rac8 {[%clk 0:02:43.3]} 13. Kb1 {[%clk 0:02:07.6]} 13... Nb4 {[%clk 0:02:30.3]}
14. a3 {[%clk 0:02:00.7]} 14... Nxd3 {[%clk 0:02:26.5]} 15. cxd3 {[%clk
0:02:01.6]} 15... b5 {[%clk 0:02:15.9]} 16. gxh5 {[%clk 0:01:57.7]} 16... Nxh5
{[%clk 0:02:14.9]} 17. Nd5 {[%clk 0:01:57]} 17... Qd8 {[%clk 0:02:11.1]} 18. f4
{[%clk 0:01:46.4]} 18... e6 {[%clk 0:02:09.8]} 19. Nc3 {[%clk 0:01:35.1]} 19...
a5 {[%clk 0:02:08.8]} 20. Ne2 {[%clk 0:01:20.5]} 20... b4 {[%clk 0:02:08.1]} 21.
Bd4 {[%clk 0:01:10.3]} 21... e5 {[%clk 0:01:59.7]} 22. Be3 {[%clk 0:01:03.5]}
22... bxa3 {[%clk 0:01:49.5]} 23. bxa3 {[%clk 0:00:47.4]} 23... Rb8+ {[%clk
0:01:48.5]} 24. Ka2 {[%clk 0:00:38.5]} 24... f6 {[%clk 0:01:35.6]} 25. Nf3
{[%clk 0:00:29.7]} 25... Be6+ {[%clk 0:01:35]} 26. Ka1 {[%clk 0:00:29.5]} 26...
f5 {[%clk 0:01:33.5]} 27. fxe5 {[%clk 0:00:20.4]} 27... dxe5 {[%clk 0:01:29.6]}
28. d4 {[%clk 0:00:20.9]} 28... fxe4 {[%clk 0:01:11]} 29. Nxe5 {[%clk
0:00:20.6]} 29... Rb3 {[%clk 0:01:04.1]} 30. Qc1 {[%clk 0:00:11.8]} 30... Qe7
{[%clk 0:00:43.4]} 31. Nc6 {[%clk 0:00:07.3]} 31... Rxa3+ {[%clk 0:00:38.2]} 32.
Kb2 {[%clk 0:00:05.4]} 32... Ra2+ {[%clk 0:00:35.7]} 33. Kb1 {[%clk 0:00:05.3]}
33... Qb7+ {[%clk 0:00:34.6]} 0-1

[Event "Late-Titled-Tuesday-Blitz-May-14-2024"]
[Site "Chess.com"]
[Date "2024.05.14"]
[Round "6"]
[White "maximnovik"]
[Black "Agibileg"]
[Result "0-1"]
[WhiteElo "2589"]
[BlackElo "2877"]
[TimeControl "180+1"]
[EndTime "15:05:49 PDT"]
[Termination "Agibileg won by resignation"]

1. e4 {[%clk 0:03:00.9]} 1... c5 {[%clk 0:02:56.7]} 2. Nf3 {[%clk 0:03:00.9]}
2... e6 {[%clk 0:02:55.6]} 3. c3 {[%clk 0:02:59.6]} 3... Nf6 {[%clk 0:02:55.3]}
4. e5 {[%clk 0:02:59.8]} 4... Nd5 {[%clk 0:02:55.5]} 5. d4 {[%clk 0:03:00.5]}
5... cxd4 {[%clk 0:02:56.4]} 6. cxd4 {[%clk 0:03:01.1]} 6... d6 {[%clk
0:02:56.9]} 7. a3 {[%clk 0:03:01.3]} 7... Be7 {[%clk 0:02:56.6]} 8. Bd3 {[%clk
0:03:01.4]} 8... O-O {[%clk 0:02:55]} 9. O-O {[%clk 0:02:59.6]} 9... Nd7 {[%clk
0:02:53.4]} 10. Re1 {[%clk 0:02:57.2]} 10... dxe5 {[%clk 0:02:47.5]} 11. dxe5
{[%clk 0:02:57.2]} 11... Nc5 {[%clk 0:02:47.4]} 12. Bc2 {[%clk 0:02:57.4]} 12...
a5 {[%clk 0:02:44.3]} 13. Bd2 {[%clk 0:02:51.9]} 13... b6 {[%clk 0:02:41.9]} 14.
Nc3 {[%clk 0:02:51.2]} 14... Bb7 {[%clk 0:02:40.4]} 15. Nxd5 {[%clk 0:02:22.2]}
15... Qxd5 {[%clk 0:02:41.3]} 16. Qe2 {[%clk 0:02:14.2]} 16... Rfd8 {[%clk
0:02:21.9]} 17. Rad1 {[%clk 0:02:11.1]} 17... Ba6 {[%clk 0:02:21.9]} 18. Qe3
{[%clk 0:02:10.3]} 18... Nd3 {[%clk 0:02:18.2]} 19. Bc3 {[%clk 0:02:05.7]} 19...
Bc5 {[%clk 0:02:18.5]} 20. Bxd3 {[%clk 0:01:21.5]} 20... Bxe3 {[%clk 0:02:12.6]}
21. Bxh7+ {[%clk 0:01:19.3]} 21... Kxh7 {[%clk 0:02:13.1]} 22. Rxd5 {[%clk
0:01:17.9]} 22... Bxf2+ {[%clk 0:02:09.7]} 23. Kxf2 {[%clk 0:01:17.7]} 23...
Rxd5 {[%clk 0:02:10.6]} 24. g4 {[%clk 0:01:11.6]} 24... Bb7 {[%clk 0:02:03.1]}
25. Re3 {[%clk 0:01:09.5]} 25... Rad8 {[%clk 0:02:01.4]} 26. h4 {[%clk 0:01:04]}
26... Rd3 {[%clk 0:01:58.1]} 27. Ng5+ {[%clk 0:01:03.8]} 27... Kg8 {[%clk
0:01:57.6]} 28. Nh3 {[%clk 0:00:54.1]} 28... Rxe3 {[%clk 0:01:57]} 29. Kxe3
{[%clk 0:00:54.2]} 29... Kf8 {[%clk 0:01:55.9]} 30. Nf4 {[%clk 0:00:53.4]} 30...
Ke7 {[%clk 0:01:55.5]} 31. h5 {[%clk 0:00:51.8]} 31... Rd1 {[%clk 0:01:51.7]}
32. Bd4 {[%clk 0:00:43.9]} 32... b5 {[%clk 0:01:50.1]} 33. g5 {[%clk 0:00:38.9]}
33... Rh1 {[%clk 0:01:49.4]} 34. Bc5+ {[%clk 0:00:31]} 34... Kd7 {[%clk
0:01:48.5]} 35. Bf8 {[%clk 0:00:30.2]} 35... g6 {[%clk 0:01:44]} 36. h6 {[%clk
0:00:26]} 36... Rh2 {[%clk 0:01:36.6]} 37. Bg7 {[%clk 0:00:24.9]} 37... b4
{[%clk 0:01:24.7]} 38. axb4 {[%clk 0:00:24.7]} 38... axb4 {[%clk 0:01:25.6]} 39.
b3 {[%clk 0:00:24.6]} 39... Bd5 {[%clk 0:01:24.1]} 40. Nxd5 {[%clk 0:00:16.6]}
40... exd5 {[%clk 0:01:25]} 41. Kd4 {[%clk 0:00:17.1]} 41... Ke6 {[%clk
0:01:25.4]} 42. Bf6 {[%clk 0:00:17.4]} 42... Rh3 {[%clk 0:01:18.4]} 43. Kc5
{[%clk 0:00:16.4]} 43... Rxb3 {[%clk 0:01:18.4]} 44. h7 {[%clk 0:00:16.2]} 44...
Rh3 {[%clk 0:01:18.6]} 0-1

[Event "Late-Titled-Tuesday-Blitz-May-14-2024"]
[Site "Chess.com"]
[Date "2024.05.14"]
[Round "6"]
[White "Pitomina"]
[Black "chess_sharparchitect"]
[Result "1-0"]
[WhiteElo "2535"]
[BlackElo "2356"]
[TimeControl "180+1"]
[EndTime "15:05:53 PDT"]
[Termination "Pitomina won on time"]

1. d4 {[%clk 0:03:00.9]} 1... Nf6 {[%clk 0:02:59.7]} 2. c4 {[%clk 0:03:01.4]}
2... e6 {[%clk 0:02:58.4]} 3. Nf3 {[%clk 0:03:00.6]} 3... d5 {[%clk 0:02:56.1]}
4. Nc3 {[%clk 0:02:59.7]} 4... c6 {[%clk 0:02:51.5]} 5. Bg5 {[%clk 0:02:58.4]}
5... Nbd7 {[%clk 0:02:51.4]} 6. e3 {[%clk 0:02:57.4]} 6... Qa5 {[%clk
0:02:49.6]} 7. Nd2 {[%clk 0:02:54.4]} 7... Bb4 {[%clk 0:02:49.4]} 8. Qc2 {[%clk
0:02:50.9]} 8... O-O {[%clk 0:02:39.9]} 9. Be2 {[%clk 0:02:32.6]} 9... c5 {[%clk
0:02:37.5]} 10. O-O {[%clk 0:02:13]} 10... cxd4 {[%clk 0:02:34.5]} 11. exd4
{[%clk 0:02:11.2]} 11... dxc4 {[%clk 0:02:22.3]} 12. Bxf6 {[%clk 0:02:03.6]}
12... Nxf6 {[%clk 0:02:20.6]} 13. Nxc4 {[%clk 0:02:03.5]} 13... Qc7 {[%clk
0:01:44.5]} 14. a3 {[%clk 0:01:54.9]} 14... Bxc3 {[%clk 0:01:39.7]} 15. bxc3
{[%clk 0:01:55.8]} 15... b5 {[%clk 0:01:23.1]} 16. Ne5 {[%clk 0:01:53.6]} 16...
a6 {[%clk 0:01:20.8]} 17. Rfc1 {[%clk 0:01:38.8]} 17... Bb7 {[%clk 0:01:20.6]}
18. a4 {[%clk 0:01:38.3]} 18... Be4 {[%clk 0:01:03]} 19. Qb2 {[%clk 0:01:32.9]}
19... bxa4 {[%clk 0:00:58.3]} 20. Rxa4 {[%clk 0:01:32]} 20... Rfb8 {[%clk
0:00:53.9]} 21. Qa3 {[%clk 0:01:31.4]} 21... a5 {[%clk 0:00:51.5]} 22. Ra1
{[%clk 0:01:18.8]} 22... h6 {[%clk 0:00:39.7]} 23. f3 {[%clk 0:01:17.7]} 23...
Bd5 {[%clk 0:00:31.1]} 24. Rxa5 {[%clk 0:01:16.3]} 24... Rxa5 {[%clk 0:00:28]}
25. Qxa5 {[%clk 0:01:17.2]} 25... Rb1+ {[%clk 0:00:20.4]} 26. Kf2 {[%clk
0:01:17.1]} 26... Qb7 {[%clk 0:00:20.3]} 27. Qd8+ {[%clk 0:01:08.2]} 27... Kh7
{[%clk 0:00:18.9]} 28. Bd3+ {[%clk 0:01:08.6]} 28... Ne4+ {[%clk 0:00:09.2]} 29.
fxe4 {[%clk 0:00:46]} 29... Qb2+ {[%clk 0:00:05.8]} 30. Kg3 {[%clk 0:00:44.7]}
30... Rxa1 {[%clk 0:00:02.1]} 31. exd5+ {[%clk 0:00:44.6]} 31... f5 {[%clk
0:00:01.9]} 32. dxe6 {[%clk 0:00:33.7]} 1-0

[Event "Late-Titled-Tuesday-Blitz-May-14-2024"]
[Site "Chess.com"]
[Date "2024.05.14"]
[Round "6"]
[White "lluiss"]
[Black "Slovineanu"]
[Result "1-0"]
[WhiteElo "2238"]
[BlackElo "2461"]
[TimeControl "180+1"]
[EndTime "15:05:56 PDT"]
[Termination "lluiss won by resignation"]

1. Nf3 {[%clk 0:03:00.2]} 1... Nf6 {[%clk 0:02:59.6]} 2. d4 {[%clk 0:02:59.5]}
2... e6 {[%clk 0:02:59.5]} 3. g3 {[%clk 0:02:58.6]} 3... d5 {[%clk 0:02:59.2]}
4. Bg2 {[%clk 0:02:57.8]} 4... b5 {[%clk 0:02:58]} 5. O-O {[%clk 0:02:56.7]}
5... Nbd7 {[%clk 0:02:56.2]} 6. b3 {[%clk 0:02:56.8]} 6... c5 {[%clk 0:02:55.3]}
7. c4 {[%clk 0:02:56.2]} 7... bxc4 {[%clk 0:02:44.1]} 8. bxc4 {[%clk 0:02:55]}
8... Bb7 {[%clk 0:02:44.5]} 9. cxd5 {[%clk 0:02:46.2]} 9... Nxd5 {[%clk
0:02:36.1]} 10. Bb2 {[%clk 0:02:28]} 10... Be7 {[%clk 0:02:29.1]} 11. Nc3 {[%clk
0:02:05.5]} 11... O-O {[%clk 0:02:24.8]} 12. Nxd5 {[%clk 0:02:04.6]} 12... Bxd5
{[%clk 0:02:23.8]} 13. dxc5 {[%clk 0:02:03.1]} 13... Rb8 {[%clk 0:02:12.8]} 14.
Be5 {[%clk 0:01:45.4]} 14... Nxe5 {[%clk 0:02:10]} 15. Nxe5 {[%clk 0:01:45]}
15... Bxg2 {[%clk 0:02:05]} 16. Kxg2 {[%clk 0:01:45.2]} 16... Qxd1 {[%clk
0:02:04.2]} 17. Rfxd1 {[%clk 0:01:41.7]} 17... Bxc5 {[%clk 0:02:04.8]} 18. Nd7
{[%clk 0:01:40.9]} 18... Bb6 {[%clk 0:01:56.3]} 19. Nxf8 {[%clk 0:01:37.6]}
19... Kxf8 {[%clk 0:01:52.8]} 20. Rac1 {[%clk 0:01:36.4]} 20... g6 {[%clk
0:01:52.1]} 21. Rc2 {[%clk 0:01:36.3]} 21... Kg7 {[%clk 0:01:50.4]} 22. e3
{[%clk 0:01:36.5]} 22... h5 {[%clk 0:01:49.7]} 23. h4 {[%clk 0:01:36.1]} 23...
Kf6 {[%clk 0:01:47.9]} 24. Rd7 {[%clk 0:01:35.7]} 24... Kg7 {[%clk 0:01:40.6]}
25. Rc6 {[%clk 0:01:26.8]} 25... Kf6 {[%clk 0:01:40]} 26. Rd2 {[%clk 0:01:22.4]}
26... Re8 {[%clk 0:01:37.9]} 27. a4 {[%clk 0:01:19.3]} 27... Re7 {[%clk
0:01:31.7]} 28. Ra2 {[%clk 0:01:18.3]} 28... Rd7 {[%clk 0:01:22.7]} 29. a5
{[%clk 0:01:16.6]} 29... Bd8 {[%clk 0:01:23.1]} 30. a6 {[%clk 0:01:02.7]} 30...
Ke7 {[%clk 0:01:18.8]} 31. Rc8 {[%clk 0:01:02.3]} 31... Bb6 {[%clk 0:01:17]} 32.
Rb8 {[%clk 0:01:01.4]} 32... Rd6 {[%clk 0:00:52.7]} 33. Rb7+ {[%clk 0:01:01.3]}
33... Kf6 {[%clk 0:00:51.9]} 34. Rc2 {[%clk 0:01:00.9]} 34... Rd3 {[%clk
0:00:47.3]} 35. Rc8 {[%clk 0:00:46.7]} 35... Ra3 {[%clk 0:00:42.4]} 36. Rf8
{[%clk 0:00:46.4]} 36... Rxa6 {[%clk 0:00:42]} 37. Rbxf7+ {[%clk 0:00:42.9]}
37... Ke5 {[%clk 0:00:42.1]} 38. Rf6 {[%clk 0:00:42.8]} 38... Ra2 {[%clk
0:00:40.5]} 39. Kf3 {[%clk 0:00:38.3]} 39... a5 {[%clk 0:00:39.1]} 40. Rxg6
{[%clk 0:00:36.3]} 40... a4 {[%clk 0:00:38.4]} 41. Re8 {[%clk 0:00:36.2]} 41...
Kd5 {[%clk 0:00:37.2]} 42. Rexe6 {[%clk 0:00:36]} 42... Bc5 {[%clk 0:00:35.3]}
43. Ra6 {[%clk 0:00:35.9]} 43... a3 {[%clk 0:00:34.7]} 44. Rg5+ {[%clk
0:00:35.2]} 44... Kc4 {[%clk 0:00:33.1]} 45. Rc6 {[%clk 0:00:35]} 1-0

[Event "Late-Titled-Tuesday-Blitz-May-14-2024"]
[Site "Chess.com"]
[Date "2024.05.14"]
[Round "6"]
[White "MarkusRagger"]
[Black "ImportedItalianMaple"]
[Result "1-0"]
[WhiteElo "2816"]
[BlackElo "2568"]
[TimeControl "180+1"]
[EndTime "15:05:58 PDT"]
[Termination "MarkusRagger won on time"]

1. d4 {[%clk 0:02:47.9]} 1... g6 {[%clk 0:03:00.2]} 2. e4 {[%clk 0:02:47.4]}
2... Bg7 {[%clk 0:03:00.6]} 3. Nf3 {[%clk 0:02:47.3]} 3... d6 {[%clk 0:03:00.3]}
4. Be3 {[%clk 0:02:46]} 4... Nc6 {[%clk 0:02:45.9]} 5. Nc3 {[%clk 0:02:41.4]}
5... e5 {[%clk 0:02:42.9]} 6. Bb5 {[%clk 0:02:35.3]} 6... Bd7 {[%clk 0:02:39.5]}
7. d5 {[%clk 0:02:35.1]} 7... Nce7 {[%clk 0:02:38.6]} 8. Bxd7+ {[%clk
0:02:34.9]} 8... Qxd7 {[%clk 0:02:39.5]} 9. Nd2 {[%clk 0:02:29.2]} 9... f5
{[%clk 0:02:38.1]} 10. f3 {[%clk 0:02:29]} 10... Nf6 {[%clk 0:02:32.5]} 11. O-O
{[%clk 0:02:17.7]} 11... f4 {[%clk 0:02:22]} 12. Bf2 {[%clk 0:02:17.1]} 12... g5
{[%clk 0:02:22.3]} 13. a4 {[%clk 0:02:10.7]} 13... h5 {[%clk 0:02:19.8]} 14. Qe2
{[%clk 0:02:06.4]} 14... g4 {[%clk 0:02:06.7]} 15. Qb5 {[%clk 0:01:45.1]} 15...
c6 {[%clk 0:02:05.8]} 16. dxc6 {[%clk 0:01:44.5]} 16... bxc6 {[%clk 0:02:06.5]}
17. Qc4 {[%clk 0:01:44.8]} 17... h4 {[%clk 0:01:13.9]} 18. fxg4 {[%clk
0:01:32.8]} 18... h3 {[%clk 0:01:13.8]} 19. g3 {[%clk 0:01:26.9]} 19... Nxg4
{[%clk 0:01:07.7]} 20. gxf4 {[%clk 0:01:16.5]} 20... Ne3 {[%clk 0:01:07.7]} 21.
Bxe3 {[%clk 0:01:04.1]} 21... Qg4+ {[%clk 0:01:07.6]} 22. Kf2 {[%clk 0:01:04.3]}
22... exf4 {[%clk 0:00:57.6]} 23. Bd4 {[%clk 0:00:54]} 23... d5 {[%clk
0:00:08.1]} 24. exd5 {[%clk 0:00:53]} 24... cxd5 {[%clk 0:00:09]} 25. Qb5+
{[%clk 0:00:51.8]} 25... Kf7 {[%clk 0:00:09.7]} 26. Bxg7 {[%clk 0:00:51.4]}
26... Qxg7 {[%clk 0:00:09.8]} 27. Ne2 {[%clk 0:00:31.4]} 27... Rae8 {[%clk
0:00:07]} 28. Rg1 {[%clk 0:00:29.1]} 28... Qe5 {[%clk 0:00:05.2]} 29. Qd3 {[%clk
0:00:25.9]} 29... Nf5 {[%clk 0:00:04.7]} 30. Nf3 {[%clk 0:00:24.5]} 30... Qe4
{[%clk 0:00:03.2]} 31. Ng5+ {[%clk 0:00:24]} 1-0

[Event "Late-Titled-Tuesday-Blitz-May-14-2024"]
[Site "Chess.com"]
[Date "2024.05.14"]
[Round "6"]
[White "mostafa_sakha"]
[Black "CarlosjPineror"]
[Result "1/2-1/2"]
[WhiteElo "2392"]
[BlackElo "2737"]
[TimeControl "180+1"]
[EndTime "15:05:59 PDT"]
[Termination "Game drawn - insufficient material"]

1. d4 {[%clk 0:03:00.1]} 1... Nf6 {[%clk 0:02:59.4]} 2. c4 {[%clk 0:02:59.6]}
2... d6 {[%clk 0:02:59.8]} 3. Nc3 {[%clk 0:02:59.6]} 3... e5 {[%clk 0:02:58.2]}
4. dxe5 {[%clk 0:02:59.4]} 4... dxe5 {[%clk 0:02:59.1]} 5. Qxd8+ {[%clk
0:02:59.7]} 5... Kxd8 {[%clk 0:03:00]} 6. Nf3 {[%clk 0:02:59.5]} 6... Nbd7
{[%clk 0:02:54.2]} 7. Rg1 {[%clk 0:02:58.9]} 7... h6 {[%clk 0:02:47.8]} 8. g4
{[%clk 0:02:57.7]} 8... c6 {[%clk 0:02:46.1]} 9. h4 {[%clk 0:02:52.4]} 9... Bb4
{[%clk 0:02:44.3]} 10. Bd2 {[%clk 0:02:51.1]} 10... Kc7 {[%clk 0:02:29.8]} 11.
g5 {[%clk 0:02:50]} 11... hxg5 {[%clk 0:02:29]} 12. hxg5 {[%clk 0:02:49.5]}
12... Ne8 {[%clk 0:02:26.3]} 13. a3 {[%clk 0:02:47.5]} 13... Be7 {[%clk
0:02:24.9]} 14. Ne4 {[%clk 0:02:32.7]} 14... a5 {[%clk 0:02:02.6]} 15. Bc3
{[%clk 0:02:29.4]} 15... f6 {[%clk 0:02:02.4]} 16. gxf6 {[%clk 0:02:27.6]} 16...
gxf6 {[%clk 0:02:01.2]} 17. O-O-O {[%clk 0:02:18.7]} 17... Nd6 {[%clk
0:01:47.6]} 18. Nxd6 {[%clk 0:02:08.1]} 18... Bxd6 {[%clk 0:01:48.5]} 19. Rg7
{[%clk 0:02:07.5]} 19... b5 {[%clk 0:01:39.8]} 20. cxb5 {[%clk 0:01:45]} 20...
cxb5 {[%clk 0:01:40.7]} 21. Bg2 {[%clk 0:01:44.7]} 21... b4 {[%clk 0:01:37.4]}
22. Be1 {[%clk 0:01:23.3]} 22... Rb8 {[%clk 0:01:29.2]} 23. axb4 {[%clk
0:01:17.9]} 23... axb4 {[%clk 0:01:26.6]} 24. Nd2 {[%clk 0:01:08.3]} 24... Bf8
{[%clk 0:01:23.1]} 25. Rf7 {[%clk 0:01:01.5]} 25... Rg8 {[%clk 0:01:23.7]} 26.
Bh3 {[%clk 0:00:57.5]} 26... Rg7 {[%clk 0:01:22.6]} 27. Rxg7 {[%clk 0:00:54.1]}
27... Bxg7 {[%clk 0:01:21.1]} 28. Ne4 {[%clk 0:00:52.7]} 28... Bf8 {[%clk
0:01:14.6]} 29. Bxd7 {[%clk 0:00:50.2]} 29... Bxd7 {[%clk 0:01:09.9]} 30. Nxf6
{[%clk 0:00:50.5]} 30... Be6 {[%clk 0:01:10.3]} 31. Nd5+ {[%clk 0:00:49.8]}
31... Kc6 {[%clk 0:01:07.3]} 32. e4 {[%clk 0:00:45.3]} 32... Bc5 {[%clk
0:01:08]} 33. Kc2 {[%clk 0:00:38.7]} 33... b3+ {[%clk 0:01:03]} 34. Kc3 {[%clk
0:00:37.2]} 34... Bd4+ {[%clk 0:00:59.9]} 35. Kc4 {[%clk 0:00:31.3]} 35... Bxb2
{[%clk 0:00:56.6]} 36. Rb1 {[%clk 0:00:31.1]} 36... Bd4 {[%clk 0:00:53.8]} 37.
Rxb3 {[%clk 0:00:29.1]} 37... Rxb3 {[%clk 0:00:54.5]} 38. Kxb3 {[%clk
0:00:29.6]} 38... Bxd5+ {[%clk 0:00:55.4]} 39. exd5+ {[%clk 0:00:29.7]} 39...
Kxd5 {[%clk 0:00:56.3]} 40. f3 {[%clk 0:00:26.7]} 40... Ke6 {[%clk 0:00:55.9]}
41. Kc2 {[%clk 0:00:26.3]} 41... Kf5 {[%clk 0:00:56.8]} 42. Kd3 {[%clk
0:00:26.6]} 42... Kf4 {[%clk 0:00:56.8]} 43. Ke2 {[%clk 0:00:27]} 43... Kf5
{[%clk 0:00:55.2]} 44. Bd2 {[%clk 0:00:26.2]} 44... Bc5 {[%clk 0:00:55.6]} 45.
Be3 {[%clk 0:00:25.9]} 45... Be7 {[%clk 0:00:51.6]} 46. Kd3 {[%clk 0:00:25.5]}
46... Bh4 {[%clk 0:00:49.4]} 47. Bd2 {[%clk 0:00:24.8]} 47... Bg3 {[%clk
0:00:49.9]} 48. Be3 {[%clk 0:00:24.6]} 48... Bf4 {[%clk 0:00:49.8]} 49. Bxf4
{[%clk 0:00:23]} 49... Kxf4 {[%clk 0:00:50.7]} 50. Ke2 {[%clk 0:00:22.8]} 50...
e4 {[%clk 0:00:51.5]} 51. fxe4 {[%clk 0:00:23.5]} 51... Kxe4 {[%clk 0:00:52.4]}
1/2-1/2

[Event "Late-Titled-Tuesday-Blitz-May-14-2024"]
[Site "Chess.com"]
[Date "2024.05.14"]
[Round "6"]
[White "Ditman2007"]
[Black "marik_spb"]
[Result "1-0"]
[WhiteElo "2702"]
[BlackElo "2513"]
[TimeControl "180+1"]
[EndTime "15:05:59 PDT"]
[Termination "Ditman2007 won on time"]

1. e4 {[%clk 0:03:00.9]} 1... e5 {[%clk 0:02:57.2]} 2. Nf3 {[%clk 0:03:00.8]}
2... Nc6 {[%clk 0:02:56.9]} 3. Nc3 {[%clk 0:02:59.1]} 3... Nf6 {[%clk
0:02:56.6]} 4. a4 {[%clk 0:02:59.3]} 4... Be7 {[%clk 0:02:52.6]} 5. Bd3 {[%clk
0:02:56.2]} 5... O-O {[%clk 0:02:51]} 6. O-O {[%clk 0:02:56.3]} 6... d6 {[%clk
0:02:51]} 7. h3 {[%clk 0:02:51.5]} 7... h6 {[%clk 0:02:45.8]} 8. Nd5 {[%clk
0:02:48.7]} 8... Nxd5 {[%clk 0:02:23]} 9. exd5 {[%clk 0:02:49.6]} 9... f5 {[%clk
0:02:22]} 10. dxc6 {[%clk 0:02:48.7]} 10... e4 {[%clk 0:02:21.9]} 11. Bc4+
{[%clk 0:02:32.2]} 11... d5 {[%clk 0:02:21.5]} 12. Ne5 {[%clk 0:02:32.9]} 12...
dxc4 {[%clk 0:02:09.4]} 13. Qe2 {[%clk 0:02:32.6]} 13... Qd5 {[%clk 0:02:02]}
14. Qxc4 {[%clk 0:02:23.7]} 14... Qxc4 {[%clk 0:02:01.3]} 15. Nxc4 {[%clk
0:02:24.6]} 15... bxc6 {[%clk 0:01:58.7]} 16. b3 {[%clk 0:02:24.2]} 16... Be6
{[%clk 0:01:57.1]} 17. Na5 {[%clk 0:02:20.4]} 17... c5 {[%clk 0:01:15.3]} 18.
Bb2 {[%clk 0:02:13.4]} 18... Rad8 {[%clk 0:01:07]} 19. Nc6 {[%clk 0:02:07.8]}
19... Rd7 {[%clk 0:01:05.2]} 20. Nxe7+ {[%clk 0:02:08.1]} 20... Rxe7 {[%clk
0:01:04.7]} 21. Ba3 {[%clk 0:02:09]} 21... Rd7 {[%clk 0:00:57.2]} 22. Bxc5
{[%clk 0:02:08.2]} 22... Rfd8 {[%clk 0:00:57.5]} 23. Bxa7 {[%clk 0:01:53.6]}
23... Rxd2 {[%clk 0:00:56.8]} 24. c4 {[%clk 0:01:53.5]} 24... Rb2 {[%clk
0:00:52.5]} 25. Rfb1 {[%clk 0:01:53.4]} 25... Rc2 {[%clk 0:00:39.7]} 26. a5
{[%clk 0:01:46.8]} 26... f4 {[%clk 0:00:29.9]} 27. a6 {[%clk 0:01:45.7]} 27...
Rdd2 {[%clk 0:00:27.2]} 28. Bc5 {[%clk 0:01:39.3]} 28... Bc8 {[%clk 0:00:11.9]}
29. a7 {[%clk 0:01:37.2]} 29... Bb7 {[%clk 0:00:12.5]} 30. a8=Q+ {[%clk
0:01:36]} 30... Bxa8 {[%clk 0:00:13.1]} 31. Rxa8+ {[%clk 0:01:36.4]} 31... Kh7
{[%clk 0:00:14]} 32. Rf8 {[%clk 0:01:18.6]} 32... e3 {[%clk 0:00:14]} 33. Rxf4
{[%clk 0:01:01.1]} 33... e2 {[%clk 0:00:09.2]} 34. Re1 {[%clk 0:01:01.1]} 34...
Rd1 {[%clk 0:00:07.3]} 35. Bb4 {[%clk 0:01:01.3]} 35... Rxe1+ {[%clk 0:00:03.1]}
36. Bxe1 {[%clk 0:01:02.2]} 36... Rc1 {[%clk 0:00:03.4]} 37. Re4 {[%clk
0:01:02.2]} 37... Rxe1+ {[%clk 0:00:02.6]} 38. Kh2 {[%clk 0:01:03.1]} 38... Kg6
{[%clk 0:00:02.1]} 39. b4 {[%clk 0:01:02.3]} 39... Rb1 {[%clk 0:00:02]} 40. Rxe2
{[%clk 0:01:02.1]} 40... Rxb4 {[%clk 0:00:02.2]} 41. Re4 {[%clk 0:01:03]} 41...
Kf5 {[%clk 0:00:01.6]} 42. f3 {[%clk 0:01:03.6]} 42... g5 {[%clk 0:00:00.8]} 43.
g4+ {[%clk 0:01:04.3]} 1-0

[Event "Late-Titled-Tuesday-Blitz-May-14-2024"]
[Site "Chess.com"]
[Date "2024.05.14"]
[Round "6"]
[White "cristianserban1"]
[Black "Flawless_Fighter"]
[Result "0-1"]
[WhiteElo "2499"]
[BlackElo "2677"]
[TimeControl "180+1"]
[EndTime "15:05:59 PDT"]
[Termination "Flawless_Fighter won on time"]

1. Nf3 {[%clk 0:03:00.9]} 1... d5 {[%clk 0:02:59.8]} 2. e3 {[%clk 0:03:01.2]}
2... Nf6 {[%clk 0:02:57.6]} 3. b3 {[%clk 0:02:59.8]} 3... e6 {[%clk 0:02:57.6]}
4. Bb2 {[%clk 0:02:59.8]} 4... Be7 {[%clk 0:02:58.2]} 5. c4 {[%clk 0:02:56.1]}
5... O-O {[%clk 0:02:56.7]} 6. Nc3 {[%clk 0:02:56.2]} 6... c5 {[%clk 0:02:55]}
7. cxd5 {[%clk 0:02:55.2]} 7... exd5 {[%clk 0:02:54.8]} 8. d4 {[%clk 0:02:53.9]}
8... Nc6 {[%clk 0:02:55.3]} 9. Be2 {[%clk 0:02:53.7]} 9... b6 {[%clk 0:02:50.8]}
10. O-O {[%clk 0:02:51.9]} 10... Be6 {[%clk 0:02:50.4]} 11. dxc5 {[%clk
0:02:50.6]} 11... bxc5 {[%clk 0:02:48.8]} 12. Rc1 {[%clk 0:02:50.9]} 12... h6
{[%clk 0:02:47.9]} 13. Na4 {[%clk 0:02:50]} 13... Nd7 {[%clk 0:02:45.6]} 14. Ba3
{[%clk 0:02:30.3]} 14... Nb4 {[%clk 0:02:39.1]} 15. Qd2 {[%clk 0:02:30.4]} 15...
a5 {[%clk 0:02:33.1]} 16. Rfd1 {[%clk 0:02:22.7]} 16... Rc8 {[%clk 0:02:27]} 17.
h3 {[%clk 0:02:18.5]} 17... Nf6 {[%clk 0:02:21.3]} 18. Nc3 {[%clk 0:02:01.7]}
18... Qd6 {[%clk 0:02:14.8]} 19. Bb2 {[%clk 0:01:57.6]} 19... Rfd8 {[%clk
0:02:13.5]} 20. a3 {[%clk 0:01:56.9]} 20... Nc6 {[%clk 0:02:11.3]} 21. Na4
{[%clk 0:01:55.1]} 21... Ne4 {[%clk 0:02:06.3]} 22. Qe1 {[%clk 0:01:51.4]} 22...
Qb8 {[%clk 0:01:57.8]} 23. Rd3 {[%clk 0:00:45]} 23... c4 {[%clk 0:01:53.9]} 24.
bxc4 {[%clk 0:00:43.6]} 24... dxc4 {[%clk 0:01:54.1]} 25. Rxd8+ {[%clk
0:00:43.6]} 25... Rxd8 {[%clk 0:01:54.3]} 26. Bxc4 {[%clk 0:00:38.2]} 26... Bd7
{[%clk 0:01:35.8]} 27. Ba1 {[%clk 0:00:34.6]} 27... Bxa3 {[%clk 0:01:31.3]} 28.
Rb1 {[%clk 0:00:34.1]} 28... Bb4 {[%clk 0:01:29.3]} 29. Qc1 {[%clk 0:00:28.2]}
29... Re8 {[%clk 0:01:28.1]} 30. Nd4 {[%clk 0:00:24.7]} 30... Ne5 {[%clk
0:01:26.6]} 31. Bd5 {[%clk 0:00:23.6]} 31... Nd2 {[%clk 0:01:15.5]} 32. Rxb4
{[%clk 0:00:01.9]} 32... Qxb4 {[%clk 0:01:12.1]} 33. Bc3 {[%clk 0:00:01.6]}
33... Qxa4 {[%clk 0:01:09.8]} 34. Qxd2 {[%clk 0:00:02]} 34... Nc4 {[%clk
0:00:50.9]} 35. Bxc4 {[%clk 0:00:02]} 35... Qxc4 {[%clk 0:00:50.8]} 36. Bxa5
{[%clk 0:00:02.9]} 36... Bc6 {[%clk 0:00:47.9]} 37. Nf5 {[%clk 0:00:02.5]} 37...
Qe4 {[%clk 0:00:43.3]} 38. f3 {[%clk 0:00:02.2]} 38... Qxf5 {[%clk 0:00:43.2]}
0-1